bitfinex/quotes_SOLUSD_20220103
["timestamp","ask_amount","ask_price","bid_price","bid_amount"]
[1641171093013,10.1388,175.76,175.65,8.1]
[1641171093212,18.82049368,175.76,175.62,9.3826]
[1641171093413,27.18049368,175.76,175.62,1.2826]
[1641171093614,27.18049368,175.76,175.61,3.12219381]
[1641171094013,27.18049368,175.76,175.61,4.41499381]
[1641171094213,27.18049368,175.76,175.61,1.2928]
[1641171094413,27.18049368,175.76,175.61,1.5528]
[1641171094824,30.41715254,175.76,175.63,8.5389]
[1641171095012,28.99045886,175.76,175.63,8.7989]
[1641171095616,21.71545886,175.76,175.63,8.7989]
[1641171095813,21.71545886,175.76,175.63,9.2989]
[1641171096215,18.4788,175.76,175.63,9.2989]
[1641171096416,18.4788,175.76,175.63,8.7989]
[1641171096816,18.7388,175.76,175.63,10.0863]
[1641171097417,18.7388,175.76,175.63,10.5863]
[1641171098015,18.7388,175.76,175.63,10.0863]
[1641171101642,18.4788,175.76,175.63,10.0863]
[1641171101841,10.3788,175.76,175.63,18.6863]
[1641171102641,9.8788,175.76,175.63,18.6863]
[1641171102842,10.3788,175.76,175.63,18.6863]
[1641171114759,1.8426,175.76,175.63,18.6863]
[1641171114960,1.3426,175.76,175.63,18.6863]
[1641171117063,8.98595448,175.77,175.64,27.35141728]
[1641171117262,8.98595448,175.77,175.7,8.5354]
[1641171117466,9.48595448,175.77,175.7,8.7954]
[1641171119666,8.98595448,175.77,175.7,8.7954]
[1641171120364,9.48595448,175.77,175.7,8.7954]
[1641171120565,8.98595448,175.77,175.7,8.7954]
[1641171120964,9.48595448,175.77,175.7,8.7954]
[1641171121165,8.98595448,175.77,175.7,8.7954]
[1641171122769,9.48595448,175.77,175.7,8.7954]
[1641171125970,9.48595448,175.77,175.7,0.26]
[1641171126168,9.48595448,175.77,175.69,8.5362]
[1641171126570,9.48595448,175.77,175.66,77.9442]
[1641171126969,9.48595448,175.77,175.65,8.1]
[1641171127168,1.2166,175.76,175.65,8.1]
[1641171127394,11.00092949,175.73,175.66,8.5373]
[1641171127796,11.50092949,175.73,175.66,8.5373]
[1641171127995,11.00092949,175.73,175.65,8.1]
[1641171128196,11.00092949,175.73,175.62,83.3943]
[1641171128397,18.64992949,175.73,175.6,80.6671]
[1641171128599,1.42669368,175.72,175.6,80.6671]
[1641171128801,1.42669368,175.72,175.6,72.1271]
[1641171129001,8.5409,175.66,175.59,3.12219381]
[1641171129599,2.44015125,175.67,175.57,8.1]
[1641171129898,0.5,175.67,175.6,8.5404]
[1641171130105,0.5,175.67,175.6,8.8004]
[1641171130900,9.04,175.68,175.6,8.8004]
[1641171131100,8.54,175.68,175.6,8.8004]
[1641171131500,11.16104926,175.69,175.6,8.8004]
[1641171132400,11.66104926,175.69,175.6,9.3004]
[1641171132603,11.16104926,175.69,175.6,8.8004]
[1641171133503,11.16104926,175.69,175.6,9.3004]
[1641171133703,11.16104926,175.69,175.6,8.8004]
[1641171135706,11.16104926,175.69,175.6,10.0946]
[1641171135907,11.16104926,175.69,175.6,10.5946]
[1641171138010,9.825,175.71,175.6,10.5946]
[1641171138210,10.325,175.71,175.6,10.5946]
[1641171138410,10.325,175.71,175.61,33.50128668]
[1641171138610,1.7861,175.71,175.65,8.5379]
[1641171138811,1.2861,175.71,175.65,8.5379]
[1641171139010,1.2861,175.71,175.65,8.7979]
[1641171139411,3.00658994,175.73,175.65,8.7979]
[1641171139612,3.50658994,175.73,175.65,8.7979]
[1641171139811,8.5382,175.72,175.65,8.7979]
[1641171140211,9.0382,175.72,175.65,8.7979]
[1641171141112,0.5,175.72,175.65,8.7979]
[1641171141516,3.0143968,175.74,175.65,8.7979]
[1641171141712,3.5143968,175.74,175.65,8.7979]
[1641171142113,3.5143968,175.74,175.65,9.2979]
[1641171142312,3.5143968,175.74,175.65,8.7979]
[1641171142514,3.5143968,175.74,175.65,10.0142]
[1641171142917,12.0514968,175.74,175.65,10.0142]
[1641171146417,12.0514968,175.74,175.65,17.9222]
[1641171148819,11.5514968,175.74,175.65,17.9222]
[1641171149320,8.5371,175.74,175.66,8.1]
[1641171149525,8.5364,175.76,175.69,8.536]
[1641171149724,74.2756,175.79,175.69,13.208]
[1641171149918,74.7756,175.79,175.69,13.468]
[1641171150322,76.0492,175.79,175.69,13.468]
[1641171150524,2.1984453,175.78,175.69,13.468]
[1641171150719,10.7338453,175.78,175.69,8.796]
[1641171150920,11.2338453,175.78,175.69,8.796]
[1641171151120,11.2338453,175.78,175.69,16.896]
[1641171151521,11.2338453,175.78,175.69,17.396]
[1641171152121,11.2338453,175.78,175.69,16.896]
[1641171152620,11.2338453,175.78,175.69,17.396]
[1641171153220,11.2338453,175.78,175.69,16.896]
[1641171154422,11.2338453,175.78,175.69,17.396]
[1641171155223,11.2338453,175.78,175.69,16.896]
[1641171158929,11.2338453,175.78,175.69,8.796]
[1641171159232,11.2338453,175.78,175.69,8.1]
[1641171159430,11.4938453,175.78,175.67,83.4267]
[1641171159628,11.4938453,175.78,175.67,8.5367]
[1641171160330,1.285,175.77,175.67,8.5367]
[1641171160530,8.5374,175.73,175.67,8.7967]
[1641171160730,10.8745263,175.73,175.67,8.7967]
[1641171160931,11.3745263,175.73,175.67,8.7967]
[1641171163160,11.3745263,175.73,175.67,0.26]
[1641171163559,11.3745263,175.73,175.65,10.0582]
[1641171164758,11.3745263,175.73,175.66,8.5375]
[1641171164959,11.3745263,175.73,175.66,8.7975]
[1641171165159,11.3745263,175.73,175.66,16.8975]
[1641171165459,11.3745263,175.73,175.66,8.7975]
[1641171170365,9.0374,175.73,175.66,8.7975]
[1641171171468,2.94941426,175.72,175.66,8.7975]
[1641171171870,11.98731426,175.72,175.66,0.26]
[1641171172067,11.98731426,175.72,175.65,8.7981]
[1641171176675,3.44941426,175.72,175.65,8.7981]
[1641171177073,3.44941426,175.72,175.65,9.2981]
[1641171177371,2.94941426,175.72,175.65,10.0714]
[1641171177573,2.94941426,175.72,175.66,8.1]
[1641171177772,2.94941426,175.72,175.67,8.5371]
[1641171177972,2.94941426,175.72,175.67,16.8971]
[1641171182581,2.94941426,175.72,175.67,8.7971]
[1641171185482,3.44941426,175.72,175.67,8.7971]
[1641171188186,3.44941426,175.72,175.67,8.5371]
[1641171188388,3.44941426,175.72,175.65,9.811]
[1641171188598,11.98741426,175.72,175.65,8.5377]
[1641171189486,11.98741426,175.72,175.65,8.7977]
[1641171190792,11.98741426,175.72,175.65,0.26]
[1641171190992,11.98741426,175.72,175.64,8.5386]
[1641171191392,11.98741426,175.72,175.64,8.7986]
[1641171194818,11.98741426,175.72,175.64,8.5386]
[1641171196020,11.98741426,175.72,175.64,8.7986]
[1641171197323,9.038,175.72,175.64,8.7986]
[1641171200826,2.9904509,175.71,175.64,8.7986]
[1641171204227,9.038,175.72,175.64,8.7986]
[1641171204826,9.038,175.72,175.64,9.2986]
[1641171205229,2.28736775,175.71,175.64,9.2986]
[1641171205627,2.28736775,175.71,175.65,8.1]
[1641171205827,2.28736775,175.71,175.64,9.2986]
[1641171206028,2.28736775,175.71,175.65,0.5]
[1641171206229,2.28736775,175.71,175.66,8.5376]
[1641171206429,2.28736775,175.71,175.66,9.0376]
[1641171206629,2.28736775,175.71,175.66,9.2976]
[1641171206829,9.038,175.72,175.66,9.2976]
[1641171207030,0.5,175.72,175.66,9.2976]
[1641171207531,10.3601,175.73,175.66,9.2976]
[1641171208331,10.3601,175.73,175.64,16.6383]
[1641171208332,8.5384,175.71,175.64,16.6383]
[1641171208533,2.71939722,175.72,175.64,8.1]
[1641171208931,3.21939722,175.72,175.64,8.1]
[1641171209531,3.21939722,175.72,175.64,8.36]
[1641171209732,8.5392,175.7,175.64,16.8986]
[1641171211234,2.34471134,175.69,175.64,16.8986]
[1641171214136,2.34471134,175.69,175.64,8.36]
[1641171217138,9.0392,175.7,175.64,8.36]
[1641171217740,9.0392,175.7,175.64,8.1]
[1641171218043,2.45989273,175.69,175.64,8.1]
[1641171218241,10.99949273,175.69,175.64,8.1]
[1641171218443,11.49949273,175.69,175.64,8.1]
[1641171218641,11.49949273,175.69,175.61,1.2282]
[1641171218841,11.49949273,175.69,175.6,83.5688]
[1641171219042,11.49949273,175.69,175.59,11.66319381]
[1641171219243,11.49949273,175.69,175.59,8.541]
[1641171219644,11.49949273,175.69,175.59,16.641]
[1641171220043,11.49949273,175.69,175.59,16.901]
[1641171220244,1.2833,175.68,175.59,16.901]
[1641171220444,8.5411,175.66,175.59,16.901]
[1641171220847,9.0411,175.66,175.59,16.901]
[1641171224065,11.72671386,175.66,175.59,16.901]
[1641171226272,9.0411,175.66,175.59,16.901]
[1641171228671,0.5,175.66,175.59,16.901]
[1641171228874,13.17594762,175.68,175.59,16.901]
[1641171229779,13.17594762,175.68,175.6,1.3223]
[1641171230075,13.17594762,175.68,175.6,1.5823]
[1641171230076,10.3235,175.68,175.6,1.5823]
[1641171231078,1.7833,175.68,175.6,9.6823]
[1641171231587,0.5,175.68,175.6,9.6823]
[1641171231980,1.7709,175.71,175.6,9.6823]
[1641171232180,8.5393,175.69,175.62,8.5392]
[1641171232380,9.0393,175.69,175.62,8.5392]
[1641171232580,9.0393,175.69,175.62,8.7992]
[1641171232982,12.06150237,175.69,175.62,8.7992]
[1641171242096,1.2709,175.71,175.62,8.7992]
[1641171242292,9.8097,175.71,175.63,8.1]
[1641171242594,9.8097,175.71,175.64,8.1]
[1641171242992,9.8097,175.71,175.64,8.36]
[1641171243193,3.00673932,175.7,175.64,8.36]
[1641171243493,12.04563932,175.7,175.64,0.26]
[1641171243892,12.04563932,175.7,175.63,9.8427]
[1641171243893,11.54563932,175.7,175.63,10.1027]
[1641171244904,11.54563932,175.7,175.63,18.2027]
[1641171245095,12.04563932,175.7,175.63,18.2027]
[1641171247101,3.50673932,175.7,175.63,18.2027]
[1641171251530,9.8093,175.71,175.63,18.2027]
[1641171251728,10.3093,175.71,175.63,18.2027]
[1641171252532,2.60803768,175.7,175.63,18.2027]
[1641171253528,2.60803768,175.7,175.63,17.9427]
[1641171254430,2.60803768,175.7,175.63,18.4427]
[1641171254933,2.60803768,175.7,175.63,18.7027]
[1641171255333,2.60803768,175.7,175.63,18.2027]
[1641171255535,2.60803768,175.7,175.63,18.7027]
[1641171256437,2.60803768,175.7,175.63,18.2027]
[1641171257242,3.10803768,175.7,175.63,18.2027]
[1641171259044,2.60803768,175.7,175.63,18.2027]
[1641171260244,2.60803768,175.7,175.63,18.7027]
[1641171262746,11.14693768,175.7,175.59,82.68939381]
[1641171262946,11.64693768,175.7,175.59,3.12219381]
[1641171263144,1.42669368,175.69,175.59,3.12219381]
[1641171263347,1.92669368,175.69,175.59,3.12219381]
[1641171263543,1.92669368,175.69,175.57,3.12219381]
[1641171263544,3.50549368,175.69,175.57,3.12219381]
[1641171264545,8.1,175.68,175.57,3.12219381]
[1641171264745,8.5432,175.63,175.57,3.12219381]
[1641171264947,2.76558849,175.62,175.57,3.12219381]
[1641171265148,2.76558849,175.62,175.53,3.12219381]
[1641171265449,3.26558849,175.62,175.53,3.12219381]
[1641171265847,3.26558849,175.62,175.51,11.22219381]
[1641171266069,8.5445,175.59,175.51,11.48219381]
[1641171266445,9.0445,175.59,175.51,11.48219381]
[1641171266846,9.0445,175.59,175.51,8.36]
[1641171267248,9.0445,175.59,175.51,16.9043]
[1641171268250,2.76558849,175.62,175.51,16.9043]
[1641171268452,0.5,175.61,175.51,17.4043]
[1641171268854,3.26558849,175.62,175.52,3.12219381]
[1641171269051,3.26558849,175.62,175.53,8.5433]
[1641171269450,3.26558849,175.62,175.53,8.8033]
[1641171270755,8.5435,175.61,175.53,8.8033]
[1641171270953,9.0435,175.61,175.53,8.8033]
[1641171279081,9.0435,175.61,175.53,0.26]
[1641171279280,9.0435,175.61,175.52,18.157]
[1641171280786,9.0435,175.61,175.52,9.6131]
[1641171280992,9.0435,175.61,175.52,1.5131]
[1641171281187,10.3263,175.61,175.52,0.26]
[1641171281387,10.3263,175.61,175.5,12.16679381]
[1641171281788,10.3263,175.61,175.5,9.0446]
[1641171283290,0.11548029,175.61,175.51,8.1]
[1641171283495,339.68668321,175.77,175.69,30.12466919]
[1641171283693,339.68668321,175.77,175.7,8.1]
[1641171283891,339.68668321,175.77,175.7,8.6]
[1641171284292,339.68668321,175.77,175.7,8.86]
[1641171284493,339.68668321,175.77,175.7,17.3954]
[1641171284693,3.01451025,175.8,175.7,17.3954]
[1641171284893,0.5,175.8,175.7,17.3954]
[1641171285095,0.5,175.8,175.7,16.8954]
[1641171285294,9.296,175.82,175.7,16.8954]
[1641171285502,9.296,175.82,175.7,8.36]
[1641171285695,9.296,175.82,175.7,0.26]
[1641171286098,2.98447892,175.81,175.69,15.11736716]
[1641171286496,3.74447892,175.81,175.69,15.11736716]
[1641171288807,8.5367,175.8,175.7,8.1]
[1641171289004,8.7967,175.8,175.7,8.36]
[1641171289204,9.2967,175.8,175.7,8.36]
[1641171292327,9.0367,175.8,175.7,8.1]
[1641171298931,9.0367,175.8,175.7,16.6361]
[1641171299133,2.98447892,175.81,175.7,17.1361]
[1641171299532,3.48447892,175.81,175.7,17.1361]
[1641171301836,12.01997892,175.81,175.7,17.1361]
[1641171303336,3.48447892,175.81,175.7,17.1361]
[1641171304337,3.48447892,175.81,175.71,5.64909374]
[1641171304538,3.48447892,175.81,175.72,16.6351]
[1641171305137,12.01987892,175.81,175.72,16.6351]
[1641171309240,12.01987892,175.81,175.72,8.1]
[1641171314547,12.01987892,175.81,175.72,15.402]
[1641171314747,9.0354,175.81,175.72,15.402]
[1641171314951,1.3297,175.83,175.72,42.20921638]
[1641171315148,1.2454,175.86,175.72,42.20921638]
[1641171315349,0.5,175.85,175.72,41.70921638]
[1641171315848,10.92752491,175.84,175.72,24.4372]
[1641171316250,11.42752491,175.84,175.72,24.4372]
[1641171321857,11.42752491,175.84,175.72,23.9372]
[1641171322059,11.42752491,175.84,175.72,8.1]
[1641171335704,1.42669368,175.83,175.72,8.1]
[1641171335900,2.78919811,175.77,175.72,8.1]
[1641171336302,3.28919811,175.77,175.72,8.1]
[1641171337302,8.5377,175.76,175.72,8.1]
[1641171338003,9.0377,175.76,175.72,8.1]
[1641171342411,4.26936834,175.72,175.68,76.1049]
[1641171342709,2.54559169,175.69,175.67,10.19612257]
[1641171342909,3.11021197,175.68,175.67,10.19612257]
[1641171343309,3.11021197,175.68,175.64,8.1]
[1641171343310,5.92675423,175.67,175.64,8.1]
[1641171343514,5.92675423,175.67,175.6,75.7185]
[1641171343711,8.5428,175.66,175.6,75.7185]
[1641171343911,2.39244908,175.65,175.6,75.7185]
[1641171344412,2.89244908,175.65,175.59,8.1]
[1641171344811,11.43544908,175.65,175.59,8.1]
[1641171348218,11.43544908,175.65,175.59,8.6]
[1641171350120,0.5,175.65,175.59,8.6]
[1641171350321,5.92675423,175.67,175.59,26.05715505]
[1641171350518,5.92675423,175.67,175.59,27.48384873]
[1641171351719,5.92675423,175.67,175.59,36.02534873]
[1641171352318,5.92675423,175.67,175.59,36.28534873]
[1641171357424,5.92675423,175.67,175.59,36.02534873]
[1641171357625,5.92675423,175.67,175.59,27.71965505]
[1641171358626,14.46835423,175.67,175.59,17.1415]
[1641171358825,2.83372617,175.66,175.59,8.6]
[1641171359029,2.83372617,175.66,175.59,8.1]
[1641171359225,3.33372617,175.66,175.59,8.1]
[1641171359425,3.59372617,175.66,175.59,8.1]
[1641171359851,12.13592617,175.66,175.58,4.86437611]
[1641171360024,12.13592617,175.66,175.56,83.0845]
[1641171360228,13.56261985,175.66,175.53,8.1]
[1641171361633,13.56261985,175.66,175.5,8.1]
[1641171362032,13.56261985,175.66,175.5,8.86]
[1641171365637,13.56261985,175.66,175.5,17.4056]
[1641171369668,13.56261985,175.66,175.5,17.1456]
[1641171369866,13.56261985,175.66,175.5,8.6]
[1641171370969,13.56261985,175.66,175.5,8.86]
[1641171371868,14.58471985,175.66,175.5,17.4057]
[1641171372070,14.58471985,175.66,175.5,25.0477]
[1641171373671,13.15802617,175.66,175.5,25.0477]
[1641171374071,13.15802617,175.66,175.5,28.28320442]
[1641171374270,13.41802617,175.66,175.5,28.28320442]
[1641171374773,13.41802617,175.66,175.53,3.23550442]
[1641171374973,13.41802617,175.66,175.54,8.5434]
[1641171375371,13.41802617,175.66,175.54,8.8034]
[1641171379780,13.41802617,175.66,175.55,8.1]
[1641171379984,13.41802617,175.66,175.55,8.36]
[1641171380182,12.13592617,175.66,175.55,16.9033]
[1641171381785,11.87592617,175.66,175.55,16.9033]
[1641171382386,11.87592617,175.66,175.55,8.1]
[1641171382589,13.30261985,175.66,175.55,8.1]
[1641171382990,13.56261985,175.66,175.55,8.1]
[1641171383792,13.56261985,175.66,175.55,8.36]
[1641171393920,13.56261985,175.66,175.55,0.26]
[1641171394120,13.56261985,175.66,175.52,18.1349]
[1641171394320,13.56261985,175.66,175.52,18.6349]
[1641171394722,14.84321985,175.66,175.52,18.6349]
[1641171395623,23.29011985,175.66,175.52,18.6349]
[1641171400129,23.29011985,175.66,175.52,9.8305]
[1641171401529,23.29011985,175.66,175.52,10.0905]
[1641171403236,23.29011985,175.66,175.52,8.1]
[1641171403433,31.39011985,175.66,175.49,91.74000442]
[1641171403634,31.39011985,175.66,175.5,0.5]
[1641171403835,1.56588965,175.62,175.5,0.5]
[1641171404035,8.5469,175.56,175.49,89.8262]
[1641171404235,2.56938458,175.55,175.49,79.1918]
[1641171404437,2.56938458,175.55,175.46,3.23550442]
[1641171404636,3.32938458,175.55,175.46,3.23550442]
[1641171405840,8.5494,175.51,175.46,0.26]
[1641171406039,8.5494,175.51,175.45,8.36]
[1641171406238,9.0494,175.51,175.45,8.36]
[1641171406437,2.78434662,175.52,175.45,8.36]
[1641171407739,2.78434662,175.52,175.45,16.9082]
[1641171409142,2.78434662,175.52,175.45,8.36]
[1641171409343,3.04434662,175.52,175.45,8.36]
[1641171409544,2.78434662,175.52,175.45,8.36]
[1641171410144,11.33324662,175.52,175.45,8.36]
[1641171410946,28.4952,175.57,175.45,8.36]
[1641171411347,28.9952,175.57,175.45,8.36]
[1641171411750,28.9952,175.57,175.45,11.59550442]
[1641171411946,29.2552,175.57,175.45,11.59550442]
[1641171412146,2.33406915,175.56,175.45,12.09550442]
[1641171412380,2.83406915,175.56,175.45,12.09550442]
[1641171412581,3.09406915,175.56,175.45,12.09550442]
[1641171412779,11.04256931,175.53,175.45,20.64370442]
[1641171412980,11.54256931,175.53,175.45,20.64370442]
[1641171413181,11.54256931,175.53,175.45,17.4082]
[1641171413881,11.54256931,175.53,175.45,20.64370442]
[1641171415381,9.0484,175.53,175.45,17.4082]
[1641171416482,9.0484,175.53,175.45,20.64370442]
[1641171416684,9.0484,175.53,175.45,11.83550442]
[1641171416883,9.3084,175.53,175.45,11.83550442]
[1641171417285,9.3084,175.53,175.45,8.6]
[1641171417984,9.3084,175.53,175.45,8.86]
[1641171421987,9.3084,175.53,175.45,8.36]
[1641171427590,9.0484,175.53,175.45,8.36]
[1641171428189,0.5,175.53,175.45,8.36]
[1641171428389,2.71893377,175.54,175.45,8.36]
[1641171429693,11.26673377,175.54,175.45,16.9081]
[1641171429892,8.455,175.56,175.46,31.85343839]
[1641171430092,8.455,175.56,175.46,32.11343839]
[1641171430294,8.955,175.56,175.46,32.11343839]
[1641171430694,8.955,175.56,175.46,33.93563839]
[1641171430896,2.35755201,175.55,175.46,42.03563839]
[1641171431293,2.85755201,175.55,175.46,42.03563839]
[1641171431893,2.85755201,175.55,175.46,50.58303839]
[1641171433594,2.85755201,175.55,175.46,18.7296]
[1641171433793,2.85755201,175.55,175.46,18.2296]
[1641171434193,11.40505201,175.55,175.46,17.9696]
[1641171434396,11.66505201,175.55,175.46,9.4222]
[1641171434796,11.40505201,175.55,175.46,9.4222]
[1641171435598,11.40505201,175.55,175.46,9.6822]
[1641171435996,11.40505201,175.55,175.46,10.1822]
[1641171436896,11.40505201,175.55,175.46,18.7299]
[1641171437197,2.85755201,175.55,175.46,18.7299]
[1641171438300,2.85755201,175.55,175.46,18.2299]
[1641171438499,11.40515201,175.55,175.46,18.2299]
[1641171438701,11.40515201,175.55,175.46,18.7299]
[1641171438999,11.40515201,175.55,175.46,18.2299]
[1641171442207,10.90515201,175.55,175.46,18.2299]
[1641171448831,10.90515201,175.55,175.46,18.7299]
[1641171449231,10.90515201,175.55,175.46,18.2299]
[1641171452937,11.40515201,175.55,175.46,18.2299]
[1641171456337,11.40515201,175.55,175.46,18.7299]
[1641171462847,11.40515201,175.55,175.46,18.2299]
[1641171463047,11.40515201,175.55,175.46,18.7299]
[1641171463447,11.40515201,175.55,175.46,18.2299]
[1641171463647,11.40515201,175.55,175.46,18.7299]
[1641171465952,11.40515201,175.55,175.46,9.9222]
[1641171466154,11.66515201,175.55,175.46,9.4222]
[1641171467356,11.66515201,175.55,175.46,9.6822]
[1641171467554,11.66515201,175.55,175.46,8.36]
[1641171468558,11.66515201,175.55,175.46,8.1]
[1641171469661,11.66515201,175.55,175.46,8.6]
[1641171469857,11.66515201,175.55,175.46,8.86]
[1641171472563,13.23104166,175.55,175.46,8.86]
[1641171473459,11.66515201,175.55,175.46,8.86]
[1641171475164,9.0476,175.55,175.46,8.86]
[1641171475363,8.5476,175.55,175.46,8.86]
[1641171476063,2.23737353,175.54,175.46,8.86]
[1641171477871,2.23737353,175.54,175.46,17.4079]
[1641171478272,2.23737353,175.54,175.46,8.6]
[1641171478471,11.04547353,175.54,175.46,8.6]
[1641171478672,11.54547353,175.54,175.46,8.6]
[1641171478871,11.54547353,175.54,175.46,0.5]
[1641171479271,11.54547353,175.54,175.43,13.10070442]
[1641171479893,11.54547353,175.54,175.43,9.8652]
[1641171480400,12.81057353,175.54,175.43,10.1252]
[1641171480898,12.81057353,175.54,175.43,9.6252]
[1641171481098,14.37646318,175.54,175.43,9.6252]
[1641171488308,15.80315686,175.54,175.43,9.6252]
[1641171489810,14.37646318,175.54,175.43,9.6252]
[1641171490812,14.37646318,175.54,175.43,18.1744]
[1641171492139,12.81057353,175.54,175.43,18.1744]
[1641171493340,21.93426721,175.54,175.43,8.1]
[1641171494142,21.93426721,175.54,175.4,152.54910442]
[1641171494547,23.50015686,175.54,175.4,149.3136]
[1641171494742,23.50015686,175.54,175.38,8.1]
[1641171494942,8.1,175.53,175.37,3.23550442]
[1641171495144,3.02508207,175.44,175.37,3.23550442]
[1641171495344,3.02508207,175.44,175.36,8.1]
[1641171495345,3.52508207,175.44,175.36,8.1]
[1641171495544,3.78508207,175.44,175.36,8.1]
[1641171496543,8.5539,175.43,175.36,8.1]
[1641171496948,9.3139,175.43,175.36,8.1]
[1641171497145,9.3139,175.43,175.36,8.36]
[1641171499450,8.5539,175.43,175.36,8.36]
[1641171499849,9.0539,175.43,175.36,8.36]
[1641171500047,9.3139,175.43,175.36,8.36]
[1641171500550,9.3139,175.43,175.36,8.1]
[1641171500948,8.8139,175.43,175.36,8.1]
[1641171501349,0.26,175.43,175.36,8.1]
[1641171501549,8.8131,175.44,175.36,8.1]
[1641171501950,8.8131,175.44,175.36,8.36]
[1641171502152,1.3401,175.46,175.37,31.01676134]
[1641171502355,10.11798965,175.47,175.37,31.01676134]
[1641171502560,1.56588965,175.47,175.38,1.3083]
[1641171502955,1.56588965,175.47,175.38,1.5683]
[1641171503157,2.42889289,175.46,175.38,0.26]
[1641171503357,8.5528,175.45,175.38,0.26]
[1641171503557,2.68889289,175.46,175.36,8.86]
[1641171503755,2.42889289,175.46,175.36,8.86]
[1641171504355,3.18889289,175.46,175.36,8.36]
[1641171504555,11.74109289,175.46,175.36,8.36]
[1641171504955,11.74109289,175.46,175.36,8.86]
[1641171505154,11.24109289,175.46,175.36,8.36]
[1641171505355,11.74109289,175.46,175.36,8.36]
[1641171505755,11.74109289,175.46,175.36,16.9125]
[1641171512366,11.48109289,175.46,175.36,16.9125]
[1641171512667,11.74109289,175.46,175.36,16.9125]
[1641171514367,11.74109289,175.46,175.36,17.4125]
[1641171514568,11.74109289,175.46,175.36,16.9125]
[1641171523506,11.74109289,175.46,175.36,8.1]
[1641171523906,11.74109289,175.46,175.35,1.3087]
[1641171524706,8.5537,175.43,175.35,1.3087]
[1641171524906,8.5537,175.43,175.35,1.5687]
[1641171525107,0.26,175.43,175.35,1.5687]
[1641171525512,2.0903,175.45,175.35,1.5687]
[1641171525810,1.8303,175.45,175.35,1.5687]
[1641171526711,8.553,175.44,175.35,10.1217]
[1641171526913,9.053,175.44,175.35,10.6217]
[1641171527312,9.053,175.44,175.35,10.1217]
[1641171527513,9.313,175.44,175.35,10.6217]
[1641171527711,9.313,175.44,175.35,10.1217]
[1641171527912,9.053,175.44,175.35,10.1217]
[1641171528112,8.553,175.44,175.35,10.1217]
[1641171528512,9.313,175.44,175.35,10.1217]
[1641171528712,9.053,175.44,175.35,10.1217]
[1641171528912,9.053,175.44,175.35,10.6217]
[1641171529112,9.313,175.44,175.35,10.1217]
[1641171529313,9.053,175.44,175.35,10.1217]
[1641171529916,8.553,175.44,175.35,10.1217]
[1641171530113,9.313,175.44,175.35,10.1217]
[1641171531412,8.813,175.44,175.35,10.1217]
[1641171533819,8.553,175.44,175.35,10.1217]
[1641171534920,8.553,175.44,175.35,10.6217]
[1641171536522,9.8827,175.45,175.35,10.6217]
[1641171536721,10.3827,175.45,175.35,10.6217]
[1641171536925,9.8827,175.45,175.35,10.6217]
[1641171537422,1.3303,175.45,175.35,10.6217]
[1641171537623,1.5903,175.45,175.35,10.1217]
[1641171537823,1.3303,175.45,175.35,10.1217]
[1641171538627,9.8827,175.45,175.35,10.1217]
[1641171538825,10.6427,175.45,175.35,9.6217]
[1641171539125,10.6427,175.45,175.35,10.1217]
[1641171539925,10.3827,175.45,175.35,10.1217]
[1641171540128,10.6427,175.45,175.35,10.1217]
[1641171540325,10.6427,175.45,175.35,9.6217]
[1641171540526,10.3827,175.45,175.35,9.6217]
[1641171540729,10.6427,175.45,175.35,9.6217]
[1641171541329,10.6427,175.45,175.35,10.1217]
[1641171541928,9.3124,175.45,175.35,10.1217]
[1641171542128,9.3124,175.45,175.35,9.6217]
[1641171544330,10.6209,175.45,175.35,9.6217]
[1641171546838,10.6209,175.45,175.35,10.1217]
[1641171547036,10.6209,175.45,175.35,9.6217]